Workbook

Sheet Man Page RoundToSum
A1: Name
A3: RoundToSum - Calculate rounded summands which exactly add up to the rounded sum of unrounded summands
A5: Synopsis
A7: RoundToSum(vInput, [lDigits], [bAbsSum], [lErrorType], [bDontAmend])
A9: Description
A11: RoundToSum calculates rounded summands which exactly add up to the rounded sum of the unrounded summands.
A12: It uses the largest remainder method which minimizes the error to the original unrounded summands.
A14: Example
A16: If you need to distribute 1 EUR to three people, all of them should get 1/3 EUR but you need to amend this to whole cents:
A25: Options
A27: vInput
B28: Range or array which contains unrounded values
A30: lDigits
B31: Optional - standard value is 2 if not provided
B32: Number of digits to round to. For example: 0 rounds to integers, 2 rounds to the cent, -3 will use thousands
A34: bAbsSum
B35: Optional - standard value is True if not provided
B36: True - takes the summands as they are
B37: False - works on the summands' percentages to make all percentages add up to 100% exactly
A39: lErrorType
B40: Optional - type of error to be minized; standard value is 1 if not provided
B41: 1 - Absolute error
B42: 2 - Relative error
A44: bDontAmend
B45: Optional - standard value is False if not provided
B46: True - do not amend the rounded summands to match the rounded sum. This parameter is mainly for ease of use or presentation to see this function's impact
B47: False - perform amendments as described above
A49: See Also
B50: https://www.experts-exchange.com/articles/31683/Round-elements-of-a-sum-to-match-a-total.html
B51: https://www.think-cell.com/en/support/manual/exceldatarounding.shtml
B52: http://sulprobil.com/Get_it_done/IT/Excel_Fun/Worksheet_Functions/Largest_Remainder/Allocation_of_Overheads/allocation_of_overheads.html
B53: http://sulprobil.com/Get_it_done/IT/Excel_Fun/Excel_VBA/D-Hondt_Method/d-hondt_method.html
B54: http://sulprobil.com/Get_it_done/Controlling/Risk_Management/Random_Numbers/Distributions/sbExactRandHistogrm/sbexactrandhistogrm.html
A56: Further Reading
B57: Mosteller, Youtz and Zahn: "The Distributions of Sums of Rounded Percentages", Demography (1967), 4, p. 850 - 858
B58: Diaconis and Freedman: "On Rounding Percentages", Journal of the American Statistical Association, Vol. 74, No. 366. (Jun., 1979), pp. 359-364

Sheet RoundToSum
C1: bAbsSum | D1: TRUE | G1: Total objective | I1: lErrorType | J1: 1
C2: Decimals to round to: | D2: -3 | G2: Difference to rounded | I2: bDontAmend | J2: FALSE
B3: Absolute values | C3: Relative values | D3: Rounded values | E3: Error | F3: Rank of | G3: =ROUND(IF($D$1,SUM(B5:B16),SUM(C5:C16)),$D$2) -> 682000 | H3: Result | J3: VBA | L3: Difference
A4: Total | B4: =SUM(B5:B16) -> 681709 | C4: =SUM(C5:C16) -> 100 | D4: =SUM(D5:D16) -> 684000 | F4: error | G4: =G3-D4 -> -2000 | H4: =SUM(H5:H16) -> 682000 | J4: =SUM(J5:J16) -> 682000 | L4: =J4-H4 -> 0
A5: 1 | B5: 4523 | C5: =B5/$B$4% -> 0.6634795785 | D5: =ROUND(IF($D$1,B5,C5),$D$2) -> 5000 | E5: =CHOOSE($J$1,D5-IF($D$1,B5,C5),(D5-IF($D$1,B5,C5))*IF($D$1,B5,C5)) -> 477 | F5: =COUNTIF($E$5:$E$16,IF($G$4>0,"<",">")&$E5)+COUNTIF($E$5:$E5,$E5) -> 3 | G5: =IF(F5<=ROUND(ABS($G$4*10^$D$2),0),SIGN($G$4)*10^-$D$2,0) -> 0 | H5: =D5+G5 -> 5000 | J5: =RoundToSum(B5:B16,D2,D1,J1,J2) -> 5000 | L5: =J5-H5 -> 0
A6: 2 | B6: 456 | C6: =B6/$B$4% -> 0.06689071143 | D6: =ROUND(IF($D$1,B6,C6),$D$2) -> 0 | E6: =CHOOSE($J$1,D6-IF($D$1,B6,C6),(D6-IF($D$1,B6,C6))*IF($D$1,B6,C6)) -> -456 | F6: =COUNTIF($E$5:$E$16,IF($G$4>0,"<",">")&$E6)+COUNTIF($E$5:$E6,$E6) -> 12 | G6: =IF(F6<=ROUND(ABS($G$4*10^$D$2),0),SIGN($G$4)*10^-$D$2,0) -> 0 | H6: =D6+G6 -> 0 | J6: 0 | L6: 0
A7: 3 | B7: -78845 | C7: -11.5657854 | D7: -79000 | E7: -155 | F7: =COUNTIF($E$5:$E$16,IF($G$4>0,"<",">")&$E7)+COUNTIF($E$5:$E7,$E7) -> 11 | G7: 0 | H7: -79000 | J7: -79000 | L7: 0
A8: 4 | B8: -14491 | C8: -2.12568706 | D8: -14000 | E8: 491 | F8: =COUNTIF($E$5:$E$16,IF($G$4>0,"<",">")&$E8)+COUNTIF($E$5:$E8,$E8) -> 1 | G8: -1000 | H8: -15000 | J8: -15000 | L8: 0
A9: 5 | B9: 65789 | C9: 9.650598716 | D9: 66000 | E9: 211 | F9: =COUNTIF($E$5:$E$16,IF($G$4>0,"<",">")&$E9)+COUNTIF($E$5:$E9,$E9) -> 7 | G9: 0 | H9: 66000 | J9: 66000 | L9: 0
A10: 6 | B10: 129512 | C10: 18.99813557 | D10: 130000 | E10: 488 | F10: =COUNTIF($E$5:$E$16,IF($G$4>0,"<",">")&$E10)+COUNTIF($E$5:$E10,$E10) -> 2 | G10: -1000 | H10: 129000 | J10: 129000 | L10: 0
A11: 7 | B11: 15562 | C11: 2.282792218 | D11: 16000 | E11: 438 | F11: =COUNTIF($E$5:$E$16,IF($G$4>0,"<",">")&$E11)+COUNTIF($E$5:$E11,$E11) -> 5 | G11: 0 | H11: 16000 | J11: 16000 | L11: 0
A12: 8 | B12: 548555 | C12: 80.46761888 | D12: 549000 | E12: 445 | F12: =COUNTIF($E$5:$E$16,IF($G$4>0,"<",">")&$E12)+COUNTIF($E$5:$E12,$E12) -> 4 | G12: 0 | H12: 549000 | J12: 549000 | L12: 0
A13: 9 | B13: 1590 | C13: 0.2332373491 | D13: 2000 | E13: 410 | F13: =COUNTIF($E$5:$E$16,IF($G$4>0,"<",">")&$E13)+COUNTIF($E$5:$E13,$E13) -> 6 | G13: 0 | H13: 2000 | J13: 2000 | L13: 0
A14: 10 | B14: -897 | C14: -0.1315810705 | D14: -1000 | E14: -103 | F14: =COUNTIF($E$5:$E$16,IF($G$4>0,"<",">")&$E14)+COUNTIF($E$5:$E14,$E14) -> 10 | G14: 0 | H14: -1000 | J14: -1000 | L14: 0
A15: 11 | B15: 6968 | C15: 1.022137012 | D15: 7000 | E15: 32 | F15: =COUNTIF($E$5:$E$16,IF($G$4>0,"<",">")&$E15)+COUNTIF($E$5:$E15,$E15) -> 8 | G15: 0 | H15: 7000 | J15: 7000 | L15: 0
A16: 12 | B16: 2987 | C16: 0.4381634979 | D16: 3000 | E16: 13 | F16: =COUNTIF($E$5:$E$16,IF($G$4>0,"<",">")&$E16)+COUNTIF($E$5:$E16,$E16) -> 9 | G16: 0 | H16: 3000 | J16: 3000 | L16: 0
C19: bAbsSum | D19: FALSE | G19: Total objective
C20: Decimals to round to: | D20: 2 | G20: Difference to rounded
B21: Absolute values | C21: Relative values | D21: Rounded values | E21: Error | F21: Rank of | G21: =ROUND(IF($D$19,SUM(B23:B25),SUM(C23:C25)),$D$20) -> 100 | H21: Result | J21: VBA | L21: Result
A22: Total | B22: =SUM(B23:B25) -> 611 | C22: =SUM(C23:C25) -> 100 | D22: =SUM(D23:D25) -> 99.99 | F22: error | G22: =G21-D22 -> 0.01 | H22: =SUM(H23:H25) -> 100 | J22: =SUM(J23:J25) -> 100 | L22: =J22-H22 -> 0
A23: 1 | B23: 45 | C23: =B23/$B$22% -> 7.36497545 | D23: =ROUND(IF($D$19,B23,C23),$D$20) -> 7.36 | E23: =CHOOSE($J$1,D23-IF($D$19,B23,C23),(D23-IF($D$19,B23,C23))*IF($D$19,B23,C23)) -> -0.004975450082 | F23: =COUNTIF($E$23:$E$25,IF($G$22>0,"<",">")&$E23)+COUNTIF($E$23:$E23,$E23) -> 1 | G23: =IF(F23<=ROUND(ABS($G$22*10^$D$20),0),SIGN($G$22)*10^-$D$20,0) -> 0.01 | H23: =D23+G23 -> 7.37 | J23: =RoundToSum(B23:B25,D20,D19,J1,J2) -> 7.37 | L23: 0
A24: 2 | B24: 555 | C24: =B24/$B$22% -> 90.83469722 | D24: =ROUND(IF($D$19,B24,C24),$D$20) -> 90.83 | E24: =CHOOSE($J$1,D24-IF($D$19,B24,C24),(D24-IF($D$19,B24,C24))*IF($D$19,B24,C24)) -> -0.004697217676 | F24: =COUNTIF($E$23:$E$25,IF($G$22>0,"<",">")&$E24)+COUNTIF($E$23:$E24,$E24) -> 2 | G24: =IF(F24<=ROUND(ABS($G$22*10^$D$20),0),SIGN($G$22)*10^-$D$20,0) -> 0 | H24: =D24+G24 -> 90.83 | J24: 90.83 | L24: 0
A25: 3 | B25: 11 | C25: 1.800327332 | D25: 1.8 | E25: -0.0003273322422 | F25: =COUNTIF($E$23:$E$25,IF($G$22>0,"<",">")&$E25)+COUNTIF($E$23:$E25,$E25) -> 3 | G25: 0 | H25: 1.8 | J25: 1.8 | L25: 0
C28: bAbsSum | D28: TRUE | G28: Total objective
C29: Decimals to round to: | D29: 3 | G29: Difference to rounded
B30: Absolute values | C30: Relative values | D30: Rounded values | E30: Error | F30: Rank of | G30: =ROUND(IF($D$28,SUM(B32:B35),SUM(C32:C35)),$D$29) -> 2.215 | H30: Result | J30: VBA | L30: Result
A31: Total | B31: =SUM(B32:B35) -> 2.214927831 | C31: =SUM(C32:C35) -> 100 | D31: =SUM(D32:D35) -> 2.216 | F31: error | G31: =G30-D31 -> -0.001 | H31: =SUM(H32:H35) -> 2.215 | J31: =SUM(J32:J35) -> 2.215 | L31: =J31-H31 -> 0
A32: 1 | B32: =RAND() -> 0.9777482107 | C32: =B32/$B$31% -> 44.14356968 | D32: =ROUND(IF($D$28,B32,C32),$D$29) -> 0.978 | E32: =CHOOSE($J$1,D32-IF($D$28,B32,C32),(D32-IF($D$28,B32,C32))*IF($D$28,B32,C32)) -> 0.0002517892963 | F32: =COUNTIF($E$32:$E$36,IF($G$31>0,"<",">")&$E32)+COUNTIF($E$32:$E32,$E32) -> 3 | G32: =IF(F32<=ROUND(ABS($G$31*10^$D$29),0),SIGN($G$31)*10^-$D$29,0) -> 0 | H32: =D32+G32 -> 0.978 | J32: =RoundToSum(B32:B35,D29,D28,J1,J2) -> 0.978 | L32: 0
A33: 2 | B33: =RAND() -> 0.8156903094 | C33: =B33/$B$31% -> 36.82694749 | D33: =ROUND(IF($D$28,B33,C33),$D$29) -> 0.816 | E33: =CHOOSE($J$1,D33-IF($D$28,B33,C33),(D33-IF($D$28,B33,C33))*IF($D$28,B33,C33)) -> 0.0003096906417 | F33: =COUNTIF($E$32:$E$36,IF($G$31>0,"<",">")&$E33)+COUNTIF($E$32:$E33,$E33) -> 2 | G33: =IF(F33<=ROUND(ABS($G$31*10^$D$29),0),SIGN($G$31)*10^-$D$29,0) -> 0 | H33: =D33+G33 -> 0.816 | J33: 0.816 | L33: 0
A34: 3 | B34: 0.4156272718 | C34: 18.76482231 | D34: 0.416 | E34: 0.0003727281669 | F34: =COUNTIF($E$32:$E$36,IF($G$31>0,"<",">")&$E34)+COUNTIF($E$32:$E34,$E34) -> 1 | G34: -0.001 | H34: 0.415 | J34: 0.415 | L34: 0
A35: 4 | B35: 0.005862039558 | C35: 0.2646605219 | D35: 0.006 | E35: 0.0001379604425 | F35: =COUNTIF($E$32:$E$36,IF($G$31>0,"<",">")&$E35)+COUNTIF($E$32:$E35,$E35) -> 4 | G35: 0 | H35: 0.006 | J35: 0.006 | L35: 0

Sheet Read_me
A1: Original (German) from: https://www.controllingportal.de/Marktplatz/Excel-Tools/Gemeinkostenumlage.html
A2: Downloaded on: 20/01/2018 11:21:00
A4: 1. Original was wrong: 2_Umlage!C11 should read: ='1_Umlage'!J28
A5: 2. Graphic gemeinkostenumlage-1.gif on https://www.controllingportal.de/Marktplatz/Excel-Tools/Gemeinkostenumlage.html also showed wrong value 625.
A6: 3. This calculation corrects this error and is calculating correctly down to the cent so that the rounded sum is identical to the sum of rounded values.
A7: 4. Now this calculation is fit for purpose with existing accounting systems.
A9: Bernd Plumhoff
A10: 2018-01-21T11:20:00

Sheet Keys
A2: Phase 1 - Allocation of overhead costs to all cost centers
C3: Overhead Cost Centers | K3: Secondary Cost Centers | N3: Primary Cost Centers
A4: Key | B4: Total | C4: Management | D4: Secretariat | E4: Accounting | F4: Controlling | G4: HR | H4: Marketing | I4: Trainees | J4: Workers Council | K4: Factory 1 | L4: Factory 2 | M4: Car Park | N4: Production1 | O4: Production2 | P4: Production3
A5: per Head | B5: =SUM(C5:P5) -> 102 | C5: 1 | D5: 1 | E5: 3 | F5: 1 | G5: 2 | H5: 3 | I5: 3 | J5: 1 | K5: 12 | L5: 10 | N5: 20 | O5: 20 | P5: 25
A6: sqm | B6: =SUM(C6:P6) -> 2685 | C6: 50 | D6: 40 | E6: 100 | F6: 30 | G6: 50 | H6: 50 | J6: 15 | K6: 250 | L6: 350 | M6: 100 | N6: 500 | O6: 550 | P6: 600
A7: uniform | B7: =SUM(C7:P7) -> 14 | C7: 1 | D7: 1 | E7: 1 | F7: 1 | G7: 1 | H7: 1 | I7: 1 | J7: 1 | K7: 1 | L7: 1 | M7: 1 | N7: 1 | O7: 1 | P7: 1
A8: Weighted | B8: =SUM(C8:P8) -> 16 | C8: 2 | D8: 1 | E8: 1 | F8: 1 | G8: 1 | H8: 2 | I8: 1 | J8: 1 | K8: 1 | L8: 1 | M8: 1 | N8: 1 | O8: 1 | P8: 1
A11: Phase 2 - Allocation of Overhead Cost Centers and Secondary Cost Centers to Primary Cost Centers
A14: Secondary Cost Center | B14: Key | C14: Production1 | D14: Production2 | E14: Production3 | F14: Total
A16: Management | B16: Weighted | C16: 0.3 | D16: 0.4 | E16: 0.3 | F16: =SUM(C16:E16) -> 1
A17: Secretariat | B17: Weighted | C17: 0.4 | D17: 0.5 | E17: 0.1 | F17: 1
A18: Accounting | B18: Weighted | C18: 0.3 | D18: 0.13 | E18: 0.57 | F18: 1
A19: Controlling | B19: uniform | C19: 1 | D19: 1 | E19: 1 | F19: 3
A20: HR | B20: per Head | C20: 20 | D20: 20 | E20: 25 | F20: 65
A21: Marketing | B21: Weighted | C21: 0.3 | D21: 0.42 | E21: 0.28 | F21: 1
A22: Trainees | B22: uniform | C22: 1 | D22: 1 | E22: 1 | F22: 3
A23: Workers Council | B23: per Head | C23: 20 | D23: 20 | E23: 25 | F23: 65
A24: Factory 1 | B24: Weighted | C24: 0.25 | D24: 0.2 | E24: 0.55 | F24: 1
A25: Factory 2 | B25: Weighted | C25: 0.2 | D25: 0.2 | E25: 0.6 | F25: 1
A26: Car Park | B26: Weighted | C26: 0.4 | D26: 0.3 | E26: 0.3 | F26: 1

Sheet 1_Allocation
A1: Allocation of overhead costs to all cost centers
D3: Overhead Cost Centers | L3: Secondary Cost Centers | O3: Primary Cost Centers | R3: Total
A4: Cost Category | B4: Key | C4: Overhead Costs | D4: Management | E4: Secretariat | F4: Accounting | G4: Controlling | H4: HR | I4: Marketing | J4: Trainees | K4: Workers Council | L4: Factory 1 | M4: Factory 2 | N4: Car Park | O4: Production1 | P4: Production2 | Q4: Production3
A5: Travel expenses | B5: Weighted | C5: 10000 | D5: =RoundToSum($C5/INDEX(Keys!$B$5:$B$8,MATCH($B5,Keys!$A$5:$A$8,0))*INDEX(Keys!$C$5:$P$8,MATCH($B5,Keys!$A$5:$A$8,0),),,,,$R$32) -> 1250 | E5: 625 | F5: 625 | G5: 625 | H5: 625 | I5: 1250 | J5: 625 | K5: 625 | L5: 625 | M5: 625 | N5: 625 | O5: 625 | P5: 625 | Q5: 625 | R5: =SUM(D5:Q5) -> 10000
A6: Supervisory board | B6: uniform | C6: 3000 | D6: =RoundToSum($C6/INDEX(Keys!$B$5:$B$8,MATCH($B6,Keys!$A$5:$A$8,0))*INDEX(Keys!$C$5:$P$8,MATCH($B6,Keys!$A$5:$A$8,0),),,,,$R$32) -> 214.28 | E6: 214.28 | F6: 214.28 | G6: 214.28 | H6: 214.28 | I6: 214.28 | J6: 214.29 | K6: 214.29 | L6: 214.29 | M6: 214.29 | N6: 214.29 | O6: 214.29 | P6: 214.29 | Q6: 214.29 | R6: 3000
A7: Hospitality | B7: Weighted | C7: 2000 | D7: =RoundToSum($C7/INDEX(Keys!$B$5:$B$8,MATCH($B7,Keys!$A$5:$A$8,0))*INDEX(Keys!$C$5:$P$8,MATCH($B7,Keys!$A$5:$A$8,0),),,,,$R$32) -> 250 | E7: 125 | F7: 125 | G7: 125 | H7: 125 | I7: 250 | J7: 125 | K7: 125 | L7: 125 | M7: 125 | N7: 125 | O7: 125 | P7: 125 | Q7: 125 | R7: 2000
A8: Presents | B8: Weighted | C8: 1000 | D8: =RoundToSum($C8/INDEX(Keys!$B$5:$B$8,MATCH($B8,Keys!$A$5:$A$8,0))*INDEX(Keys!$C$5:$P$8,MATCH($B8,Keys!$A$5:$A$8,0),),,,,$R$32) -> 125 | E8: 62.5 | F8: 62.5 | G8: 62.5 | H8: 62.5 | I8: 125 | J8: 62.5 | K8: 62.5 | L8: 62.5 | M8: 62.5 | N8: 62.5 | O8: 62.5 | P8: 62.5 | Q8: 62.5 | R8: 1000
A9: Fees, charges | B9: uniform | C9: 500 | D9: =RoundToSum($C9/INDEX(Keys!$B$5:$B$8,MATCH($B9,Keys!$A$5:$A$8,0))*INDEX(Keys!$C$5:$P$8,MATCH($B9,Keys!$A$5:$A$8,0),),,,,$R$32) -> 35.72 | E9: 35.72 | F9: 35.72 | G9: 35.72 | H9: 35.72 | I9: 35.72 | J9: 35.71 | K9: 35.71 | L9: 35.71 | M9: 35.71 | N9: 35.71 | O9: 35.71 | P9: 35.71 | Q9: 35.71 | R9: 500
A10: Car costs | B10: Weighted | C10: 4500 | D10: =RoundToSum($C10/INDEX(Keys!$B$5:$B$8,MATCH($B10,Keys!$A$5:$A$8,0))*INDEX(Keys!$C$5:$P$8,MATCH($B10,Keys!$A$5:$A$8,0),),,,,$R$32) -> 562.5 | E10: 281.25 | F10: 281.25 | G10: 281.25 | H10: 281.25 | I10: 562.5 | J10: 281.25 | K10: 281.25 | L10: 281.25 | M10: 281.25 | N10: 281.25 | O10: 281.25 | P10: 281.25 | Q10: 281.25 | R10: 4500
A11: Hardware, equipment | B11: Weighted | C11: 200 | D11: =RoundToSum($C11/INDEX(Keys!$B$5:$B$8,MATCH($B11,Keys!$A$5:$A$8,0))*INDEX(Keys!$C$5:$P$8,MATCH($B11,Keys!$A$5:$A$8,0),),,,,$R$32) -> 25 | E11: 12.5 | F11: 12.5 | G11: 12.5 | H11: 12.5 | I11: 25 | J11: 12.5 | K11: 12.5 | L11: 12.5 | M11: 12.5 | N11: 12.5 | O11: 12.5 | P11: 12.5 | Q11: 12.5 | R11: 200
A12: External audit | B12: uniform | C12: 10000 | D12: =RoundToSum($C12/INDEX(Keys!$B$5:$B$8,MATCH($B12,Keys!$A$5:$A$8,0))*INDEX(Keys!$C$5:$P$8,MATCH($B12,Keys!$A$5:$A$8,0),),,,,$R$32) -> 714.28 | E12: 714.28 | F12: 714.28 | G12: 714.28 | H12: 714.28 | I12: 714.28 | J12: 714.29 | K12: 714.29 | L12: 714.29 | M12: 714.29 | N12: 714.29 | O12: 714.29 | P12: 714.29 | Q12: 714.29 | R12: 10000
A13: Other operating expenses | B13: sqm | C13: 5500 | D13: =RoundToSum($C13/INDEX(Keys!$B$5:$B$8,MATCH($B13,Keys!$A$5:$A$8,0))*INDEX(Keys!$C$5:$P$8,MATCH($B13,Keys!$A$5:$A$8,0),),,,,$R$32) -> 102.42 | E13: 81.94 | F13: 204.84 | G13: 61.45 | H13: 102.42 | I13: 102.42 | J13: 0 | K13: 30.73 | L13: 512.1 | M13: 716.95 | N13: 204.84 | O13: 1024.21 | P13: 1126.63 | Q13: 1229.05 | R13: 5500
A14: Energy costs | B14: sqm | C14: 6000 | D14: =RoundToSum($C14/INDEX(Keys!$B$5:$B$8,MATCH($B14,Keys!$A$5:$A$8,0))*INDEX(Keys!$C$5:$P$8,MATCH($B14,Keys!$A$5:$A$8,0),),,,,$R$32) -> 111.73 | E14: 89.39 | F14: 223.47 | G14: 67.04 | H14: 111.73 | I14: 111.73 | J14: 0 | K14: 33.52 | L14: 558.66 | M14: 782.12 | N14: 223.46 | O14: 1117.32 | P14: 1229.05 | Q14: 1340.78 | R14: 6000
A15: Insurances | B15: per Head | C15: 5000 | D15: =RoundToSum($C15/INDEX(Keys!$B$5:$B$8,MATCH($B15,Keys!$A$5:$A$8,0))*INDEX(Keys!$C$5:$P$8,MATCH($B15,Keys!$A$5:$A$8,0),),,,,$R$32) -> 49.02 | E15: 49.02 | F15: 147.06 | G15: 49.02 | H15: 98.04 | I15: 147.06 | J15: 147.06 | K15: 49.02 | L15: 588.23 | M15: 490.2 | N15: 0 | O15: 980.39 | P15: 980.39 | Q15: 1225.49 | R15: 5000
A16: Legal costs | B16: Weighted | C16: 5000 | D16: =RoundToSum($C16/INDEX(Keys!$B$5:$B$8,MATCH($B16,Keys!$A$5:$A$8,0))*INDEX(Keys!$C$5:$P$8,MATCH($B16,Keys!$A$5:$A$8,0),),,,,$R$32) -> 625 | E16: 312.5 | F16: 312.5 | G16: 312.5 | H16: 312.5 | I16: 625 | J16: 312.5 | K16: 312.5 | L16: 312.5 | M16: 312.5 | N16: 312.5 | O16: 312.5 | P16: 312.5 | Q16: 312.5 | R16: 5000
A17: Accounting costs | B17: Weighted | C17: 1000 | D17: =RoundToSum($C17/INDEX(Keys!$B$5:$B$8,MATCH($B17,Keys!$A$5:$A$8,0))*INDEX(Keys!$C$5:$P$8,MATCH($B17,Keys!$A$5:$A$8,0),),,,,$R$32) -> 125 | E17: 62.5 | F17: 62.5 | G17: 62.5 | H17: 62.5 | I17: 125 | J17: 62.5 | K17: 62.5 | L17: 62.5 | M17: 62.5 | N17: 62.5 | O17: 62.5 | P17: 62.5 | Q17: 62.5 | R17: 1000
A18: Stationary | B18: Weighted | C18: 2000 | D18: =RoundToSum($C18/INDEX(Keys!$B$5:$B$8,MATCH($B18,Keys!$A$5:$A$8,0))*INDEX(Keys!$C$5:$P$8,MATCH($B18,Keys!$A$5:$A$8,0),),,,,$R$32) -> 250 | E18: 125 | F18: 125 | G18: 125 | H18: 125 | I18: 250 | J18: 125 | K18: 125 | L18: 125 | M18: 125 | N18: 125 | O18: 125 | P18: 125 | Q18: 125 | R18: 2000
A19: Telecommunication | B19: Weighted | C19: 2500 | D19: =RoundToSum($C19/INDEX(Keys!$B$5:$B$8,MATCH($B19,Keys!$A$5:$A$8,0))*INDEX(Keys!$C$5:$P$8,MATCH($B19,Keys!$A$5:$A$8,0),),,,,$R$32) -> 312.5 | E19: 156.25 | F19: 156.25 | G19: 156.25 | H19: 156.25 | I19: 312.5 | J19: 156.25 | K19: 156.25 | L19: 156.25 | M19: 156.25 | N19: 156.25 | O19: 156.25 | P19: 156.25 | Q19: 156.25 | R19: 2500
A20: Shipping and mailing costs | B20: Weighted | C20: 2000 | D20: =RoundToSum($C20/INDEX(Keys!$B$5:$B$8,MATCH($B20,Keys!$A$5:$A$8,0))*INDEX(Keys!$C$5:$P$8,MATCH($B20,Keys!$A$5:$A$8,0),),,,,$R$32) -> 250 | E20: 125 | F20: 125 | G20: 125 | H20: 125 | I20: 250 | J20: 125 | K20: 125 | L20: 125 | M20: 125 | N20: 125 | O20: 125 | P20: 125 | Q20: 125 | R20: 2000
A21: Books, magazines | B21: Weighted | C21: 1000 | D21: =RoundToSum($C21/INDEX(Keys!$B$5:$B$8,MATCH($B21,Keys!$A$5:$A$8,0))*INDEX(Keys!$C$5:$P$8,MATCH($B21,Keys!$A$5:$A$8,0),),,,,$R$32) -> 125 | E21: 62.5 | F21: 62.5 | G21: 62.5 | H21: 62.5 | I21: 125 | J21: 62.5 | K21: 62.5 | L21: 62.5 | M21: 62.5 | N21: 62.5 | O21: 62.5 | P21: 62.5 | Q21: 62.5 | R21: 1000
A22: Money transfer fees | B22: Weighted | C22: 500 | D22: =RoundToSum($C22/INDEX(Keys!$B$5:$B$8,MATCH($B22,Keys!$A$5:$A$8,0))*INDEX(Keys!$C$5:$P$8,MATCH($B22,Keys!$A$5:$A$8,0),),,,,$R$32) -> 62.5 | E22: 31.25 | F22: 31.25 | G22: 31.25 | H22: 31.25 | I22: 62.5 | J22: 31.25 | K22: 31.25 | L22: 31.25 | M22: 31.25 | N22: 31.25 | O22: 31.25 | P22: 31.25 | Q22: 31.25 | R22: 500
A23: Damages, compensation | B23: uniform | C23: 250 | D23: =RoundToSum($C23/INDEX(Keys!$B$5:$B$8,MATCH($B23,Keys!$A$5:$A$8,0))*INDEX(Keys!$C$5:$P$8,MATCH($B23,Keys!$A$5:$A$8,0),),,,,$R$32) -> 17.85 | E23: 17.85 | F23: 17.85 | G23: 17.85 | H23: 17.86 | I23: 17.86 | J23: 17.86 | K23: 17.86 | L23: 17.86 | M23: 17.86 | N23: 17.86 | O23: 17.86 | P23: 17.86 | Q23: 17.86 | R23: 250
A24: Working clothes | B24: Weighted | C24: 1500 | D24: =RoundToSum($C24/INDEX(Keys!$B$5:$B$8,MATCH($B24,Keys!$A$5:$A$8,0))*INDEX(Keys!$C$5:$P$8,MATCH($B24,Keys!$A$5:$A$8,0),),,,,$R$32) -> 187.5 | E24: 93.75 | F24: 93.75 | G24: 93.75 | H24: 93.75 | I24: 187.5 | J24: 93.75 | K24: 93.75 | L24: 93.75 | M24: 93.75 | N24: 93.75 | O24: 93.75 | P24: 93.75 | Q24: 93.75 | R24: 1500
A25: Handicapped fee | B25: uniform | C25: 2000 | D25: =RoundToSum($C25/INDEX(Keys!$B$5:$B$8,MATCH($B25,Keys!$A$5:$A$8,0))*INDEX(Keys!$C$5:$P$8,MATCH($B25,Keys!$A$5:$A$8,0),),,,,$R$32) -> 142.85 | E25: 142.85 | F25: 142.85 | G25: 142.85 | H25: 142.86 | I25: 142.86 | J25: 142.86 | K25: 142.86 | L25: 142.86 | M25: 142.86 | N25: 142.86 | O25: 142.86 | P25: 142.86 | Q25: 142.86 | R25: 2000
A26: Training and further education | B26: Weighted | C26: 2000 | D26: =RoundToSum($C26/INDEX(Keys!$B$5:$B$8,MATCH($B26,Keys!$A$5:$A$8,0))*INDEX(Keys!$C$5:$P$8,MATCH($B26,Keys!$A$5:$A$8,0),),,,,$R$32) -> 250 | E26: 125 | F26: 125 | G26: 125 | H26: 125 | I26: 250 | J26: 125 | K26: 125 | L26: 125 | M26: 125 | N26: 125 | O26: 125 | P26: 125 | Q26: 125 | R26: 2000
A27: Other operating expenses | B27: Weighted | C27: 1500 | D27: =RoundToSum($C27/INDEX(Keys!$B$5:$B$8,MATCH($B27,Keys!$A$5:$A$8,0))*INDEX(Keys!$C$5:$P$8,MATCH($B27,Keys!$A$5:$A$8,0),),,,,$R$32) -> 187.5 | E27: 93.75 | F27: 93.75 | G27: 93.75 | H27: 93.75 | I27: 187.5 | J27: 93.75 | K27: 93.75 | L27: 93.75 | M27: 93.75 | N27: 93.75 | O27: 93.75 | P27: 93.75 | Q27: 93.75 | R27: 1500
A28: Total | C28: =SUM(ROUND(C5:C27,2)) -> 68950 | D28: =SUM(ROUND(D5:D27,2)) -> 5975.65 | E28: =SUM(ROUND(E5:E27,2)) -> 3639.08 | F28: =SUM(ROUND(F5:F27,2)) -> 3994.1 | G28: =SUM(ROUND(G5:G27,2)) -> 3596.24 | H28: =SUM(ROUND(H5:H27,2)) -> 3730.94 | I28: =SUM(ROUND(I5:I27,2)) -> 6073.71 | J28: =SUM(ROUND(J5:J27,2)) -> 3565.82 | K28: =SUM(ROUND(K5:K27,2)) -> 3532.03 | L28: =SUM(ROUND(L5:L27,2)) -> 5077.75 | M28: =SUM(ROUND(M5:M27,2)) -> 5408.03 | N28: =SUM(ROUND(N5:N27,2)) -> 3847.06 | O28: =SUM(ROUND(O5:O27,2)) -> 6540.68 | P28: =SUM(ROUND(P5:P27,2)) -> 6754.83 | Q28: =SUM(ROUND(Q5:Q27,2)) -> 7214.08 | R28: =SUM(D28:Q28) -> 68950
Q30: Check | R30: =R28-C28 -> 0
Q32: bDontAmend | R32: FALSE

Sheet 2_Allocation
A1: Allocation of Overhead Cost Centers and Secondary Cost Centers to Primary Cost Centers
A3: Allocated Cost Centers | B3: Direct Costs | C3: Allocation Phase 1 | D3: Total | E3: Production1 | F3: Production2 | G3: Production3 | H3: Total
A5: Management | B5: 111666 | C5: =TRANSPOSE('1_Allocation'!D28:N28) -> 5975.65 | D5: =SUM(B5:C5) -> 117641.65 | E5: =RoundToSum($D5/Keys!$F16*Keys!C16:E16,,,,$K$21) -> 35292.49 | F5: 47056.66 | G5: 35292.5 | H5: =SUM(ROUND(E5:G5,2)) -> 117641.65
A6: Secretariat | B6: 34627 | C6: 3639.08 | D6: =SUM(B6:C6) -> 38266.08 | E6: =RoundToSum($D6/Keys!$F17*Keys!C17:E17,,,,$K$21) -> 15306.43 | F6: 19133.04 | G6: 3826.61 | H6: =SUM(ROUND(E6:G6,2)) -> 38266.08
A7: Accounting | B7: 96834 | C7: 3994.1 | D7: 100828.1 | E7: =RoundToSum($D7/Keys!$F18*Keys!C18:E18,,,,$K$21) -> 30248.43 | F7: 13107.65 | G7: 57472.02 | H7: =SUM(ROUND(E7:G7,2)) -> 100828.1
A8: Controlling | B8: 83875 | C8: 3596.24 | D8: 87471.24 | E8: =RoundToSum($D8/Keys!$F19*Keys!C19:E19,,,,$K$21) -> 29157.08 | F8: 29157.08 | G8: 29157.08 | H8: =SUM(ROUND(E8:G8,2)) -> 87471.24
A9: HR | B9: 53765 | C9: 3730.94 | D9: 57495.94 | E9: =RoundToSum($D9/Keys!$F20*Keys!C20:E20,,,,$K$21) -> 17691.06 | F9: 17691.06 | G9: 22113.82 | H9: =SUM(ROUND(E9:G9,2)) -> 57495.94
A10: Marketing | B10: 239170 | C10: 6073.71 | D10: 245243.71 | E10: =RoundToSum($D10/Keys!$F21*Keys!C21:E21,,,,$K$21) -> 73573.11 | F10: 103002.36 | G10: 68668.24 | H10: =SUM(ROUND(E10:G10,2)) -> 245243.71
A11: Trainees | B11: 147397 | C11: 3565.82 | D11: 150962.82 | E11: =RoundToSum($D11/Keys!$F22*Keys!C22:E22,,,,$K$21) -> 50320.94 | F11: 50320.94 | G11: 50320.94 | H11: =SUM(ROUND(E11:G11,2)) -> 150962.82
A12: Workers Council | B12: 471 | C12: 3532.03 | D12: 4003.03 | E12: =RoundToSum($D12/Keys!$F23*Keys!C23:E23,,,,$K$21) -> 1231.7 | F12: 1231.7 | G12: 1539.63 | H12: =SUM(ROUND(E12:G12,2)) -> 4003.03
A13: Factory 1 | B13: 125225 | C13: 5077.75 | D13: 130302.75 | E13: =RoundToSum($D13/Keys!$F24*Keys!C24:E24,,,,$K$21) -> 32575.69 | F13: 26060.55 | G13: 71666.51 | H13: =SUM(ROUND(E13:G13,2)) -> 130302.75
A14: Factory 2 | B14: 2398512 | C14: 5408.03 | D14: 2403920.03 | E14: =RoundToSum($D14/Keys!$F25*Keys!C25:E25,,,,$K$21) -> 480784 | F14: 480784.01 | G14: 1442352.02 | H14: =SUM(ROUND(E14:G14,2)) -> 2403920.03
A15: Car Park | B15: 26992 | C15: 3847.06 | D15: 30839.06 | E15: =RoundToSum($D15/Keys!$F26*Keys!C26:E26,,,,$K$21) -> 12335.62 | F15: 9251.72 | G15: 9251.72 | H15: =SUM(ROUND(E15:G15,2)) -> 30839.06
A16: Phase 1 Allocation | E16: ='1_Allocation'!O28 -> 6540.68 | F16: ='1_Allocation'!P28 -> 6754.83 | G16: ='1_Allocation'!Q28 -> 7214.08 | H16: =SUM(ROUND(E16:G16,2)) -> 20509.59
A17: Phase 2 Allocation | B17: =SUM(B5:B15) -> 3318534 | C17: 48440.41 | D17: 3366974.41 | E17: 778516.55 | F17: 796796.77 | G17: 1791661.09 | H17: 3366974.41
A18: Directs Costs | E18: 738060 | F18: 854000 | G18: 650360 | H18: =SUM(ROUND(E18:G18,2)) -> 2242420
A19: Total Primary Cost Centers | E19: =SUM(E16:E18) -> 1523117.23 | F19: =SUM(F16:F18) -> 1657551.6 | G19: =SUM(G16:G18) -> 2449235.17 | H19: =SUM(H16:H18) -> 5629904 | J19: Check | K19: =H19-SUM(E18:G18)-SUM(B5:B15)-SUM('1_Allocation'!C5:C27) -> 0
A21: Overhead rate | E21: =(E17+E16)/E18 -> 1.063676707 | F21: =(F17+F16)/F18 -> 0.9409269321 | G21: =(G17+G16)/G18 -> 2.765968341 | H21: =(H17+H16)/H18 -> 1.510637615 | J21: bDontAmend | K21: FALSE

Sheet RoundToSum vs Others
C1: I | D1: II | E1: III | F1: IV | G1: V | H1: VI | I1: VII | J1: VIII
C2: Original unrounded | D2: RoundToSum | E2: Cascading Round | F2: Simple Round & Amend Last | G2: Simple Round | H2: Difference II - V | I2: Difference III - V | J2: Difference IV - V
B3: Summands | C3: 678.6474579 | D3: =TRANSPOSE(RoundToSum(C3:C42)) -> 678.65 | E3: =ROUND(SUM($C$3:$C3),2)-SUM(E$2:E2) -> 678.65 | F3: =ROUND($C3,2) -> 678.65 | G3: =ROUND($C3,2) -> 678.65 | H3: =IF(ABS(D3-$G3)<0.000001,"",D3-$G3) ->  | I3: =IF(ABS(E3-$G3)<0.000001,"",E3-$G3) ->  | J3: =IF(ABS(F3-$G3)<0.000001,"",F3-$G3) -> 
C4: 146.7029479 | D4: 146.7 | E4: =ROUND(SUM($C$3:$C4),2)-SUM(E$2:E3) -> 146.7 | F4: =ROUND($C4,2) -> 146.7 | G4: 146.7 | H4: =IF(ABS(D4-$G4)<0.000001,"",D4-$G4) -> 
C5: 808.4307786 | D5: 808.43 | E5: =ROUND(SUM($C$3:$C5),2)-SUM(E$2:E4) -> 808.43 | F5: 808.43 | G5: 808.43
C6: 878.0595004 | D6: 878.06 | E6: =ROUND(SUM($C$3:$C6),2)-SUM(E$2:E5) -> 878.06 | F6: 878.06 | G6: 878.06
C7: 801.0013684 | D7: 801 | E7: =ROUND(SUM($C$3:$C7),2)-SUM(E$2:E6) -> 801 | F7: 801 | G7: 801
C8: 895.2150029 | D8: 895.21 | E8: =ROUND(SUM($C$3:$C8),2)-SUM(E$2:E7) -> 895.22 | F8: 895.22 | G8: 895.22 | H8: -0.01
C9: 55.04805448 | D9: 55.05 | E9: =ROUND(SUM($C$3:$C9),2)-SUM(E$2:E8) -> 55.05 | F9: 55.05 | G9: 55.05
C10: 57.68633069 | D10: 57.69 | E10: =ROUND(SUM($C$3:$C10),2)-SUM(E$2:E9) -> 57.68 | F10: 57.69 | G10: 57.69 | I10: -0.01
C11: 740.3151284 | D11: 740.31 | E11: =ROUND(SUM($C$3:$C11),2)-SUM(E$2:E10) -> 740.32 | F11: 740.32 | G11: 740.32 | H11: -0.01
C12: 437.4782795 | D12: 437.48 | E12: =ROUND(SUM($C$3:$C12),2)-SUM(E$2:E11) -> 437.47 | F12: 437.48 | G12: 437.48 | I12: -0.01
C13: 185.281457 | D13: 185.28 | E13: =ROUND(SUM($C$3:$C13),2)-SUM(E$2:E12) -> 185.29 | F13: 185.28 | G13: 185.28 | I13: 0.01
C14: 950.9552226 | D14: 950.96 | E14: =ROUND(SUM($C$3:$C14),2)-SUM(E$2:E13) -> 950.95 | F14: 950.96 | G14: 950.96 | I14: -0.01
C15: 692.0965454 | D15: 692.1 | E15: =ROUND(SUM($C$3:$C15),2)-SUM(E$2:E14) -> 692.1 | F15: 692.1 | G15: 692.1
C16: 147.1681062 | D16: 147.17 | E16: =ROUND(SUM($C$3:$C16),2)-SUM(E$2:E15) -> 147.17 | F16: 147.17 | G16: 147.17
C17: 237.137552 | D17: 237.14 | E17: =ROUND(SUM($C$3:$C17),2)-SUM(E$2:E16) -> 237.13 | F17: 237.14 | G17: 237.14 | I17: -0.01
C18: 487.2154213 | D18: 487.22 | E18: =ROUND(SUM($C$3:$C18),2)-SUM(E$2:E17) -> 487.22 | F18: 487.22 | G18: 487.22
C19: 364.4641508 | D19: 364.46 | E19: =ROUND(SUM($C$3:$C19),2)-SUM(E$2:E18) -> 364.46 | F19: 364.46 | G19: 364.46
C20: 525.2537907 | D20: 525.25 | E20: =ROUND(SUM($C$3:$C20),2)-SUM(E$2:E19) -> 525.26 | F20: 525.25 | G20: 525.25 | I20: 0.01
C21: 186.8746365 | D21: 186.87 | E21: =ROUND(SUM($C$3:$C21),2)-SUM(E$2:E20) -> 186.87 | F21: 186.87 | G21: 186.87
C22: 731.7332769 | D22: 731.73 | E22: =ROUND(SUM($C$3:$C22),2)-SUM(E$2:E21) -> 731.74 | F22: 731.73 | G22: 731.73 | I22: 0.01
C23: 629.6751693 | D23: 629.67 | E23: =ROUND(SUM($C$3:$C23),2)-SUM(E$2:E22) -> 629.67 | F23: 629.68 | G23: 629.68 | H23: -0.01 | I23: -0.01
C24: 76.5434454 | D24: 76.54 | E24: =ROUND(SUM($C$3:$C24),2)-SUM(E$2:E23) -> 76.54 | F24: 76.54 | G24: 76.54
C25: 796.2709821 | D25: 796.27 | E25: =ROUND(SUM($C$3:$C25),2)-SUM(E$2:E24) -> 796.27 | F25: 796.27 | G25: 796.27
C26: 718.8760902 | D26: 718.88 | E26: =ROUND(SUM($C$3:$C26),2)-SUM(E$2:E25) -> 718.88 | F26: 718.88 | G26: 718.88
C27: 822.8369312 | D27: 822.84 | E27: =ROUND(SUM($C$3:$C27),2)-SUM(E$2:E26) -> 822.84 | F27: 822.84 | G27: 822.84
C28: 816.4265379 | D28: 816.43 | E28: =ROUND(SUM($C$3:$C28),2)-SUM(E$2:E27) -> 816.42 | F28: 816.43 | G28: 816.43 | I28: -0.01
C29: 815.4299402 | D29: 815.43 | E29: =ROUND(SUM($C$3:$C29),2)-SUM(E$2:E28) -> 815.43 | F29: 815.43 | G29: 815.43
C30: 925.4513501 | D30: 925.45 | E30: =ROUND(SUM($C$3:$C30),2)-SUM(E$2:E29) -> 925.46 | F30: 925.45 | G30: 925.45 | I30: 0.01
C31: 130.5991436 | D31: 130.6 | E31: =ROUND(SUM($C$3:$C31),2)-SUM(E$2:E30) -> 130.59 | F31: 130.6 | G31: 130.6 | I31: -0.01
C32: 743.1380489 | D32: 743.14 | E32: =ROUND(SUM($C$3:$C32),2)-SUM(E$2:E31) -> 743.14 | F32: 743.14 | G32: 743.14
C33: 397.6661651 | D33: 397.67 | E33: =ROUND(SUM($C$3:$C33),2)-SUM(E$2:E32) -> 397.67 | F33: 397.67 | G33: 397.67
C34: 759.5541378 | D34: 759.55 | E34: =ROUND(SUM($C$3:$C34),2)-SUM(E$2:E33) -> 759.55 | F34: 759.55 | G34: 759.55
C35: 517.7971853 | D35: 517.8 | E35: =ROUND(SUM($C$3:$C35),2)-SUM(E$2:E34) -> 517.8 | F35: 517.8 | G35: 517.8
C36: 668.9198847 | D36: 668.92 | E36: =ROUND(SUM($C$3:$C36),2)-SUM(E$2:E35) -> 668.92 | F36: 668.92 | G36: 668.92
C37: 927.6280481 | D37: 927.63 | E37: =ROUND(SUM($C$3:$C37),2)-SUM(E$2:E36) -> 927.63 | F37: 927.63 | G37: 927.63
C38: 690.0299826 | D38: 690.03 | E38: =ROUND(SUM($C$3:$C38),2)-SUM(E$2:E37) -> 690.03 | F38: 690.03 | G38: 690.03
C39: 10.44383544 | D39: 10.44 | E39: =ROUND(SUM($C$3:$C39),2)-SUM(E$2:E38) -> 10.44 | F39: 10.44 | G39: 10.44
C40: 994.0458854 | D40: 994.05 | E40: =ROUND(SUM($C$3:$C40),2)-SUM(E$2:E39) -> 994.05 | F40: 994.05 | G40: 994.05
C41: 719.3612933 | D41: 719.36 | E41: =ROUND(SUM($C$3:$C41),2)-SUM(E$2:E40) -> 719.36 | F41: 719.36 | G41: 719.36
C42: 871.3192169 | D42: 871.32 | E42: =ROUND(SUM($C$3:$C42),2)-SUM(E$2:E41) -> 871.32 | F42: =ROUND(C43,2)-SUM(F3:F41) -> 871.29 | G42: 871.32 | J42: -0.03
B43: Total | C43: =SUM(C3:C42) -> 23038.77828 | D43: 23038.78 | E43: 23038.78 | F43: 23038.78 | G43: 23038.81 | H43: -0.03 | I43: -0.03 | J43: -0.03
B44: ABS Difference to Original | D44: =SUMPRODUCT(ABS(D3:D42-$C$3:$C$42)) -> 0.1072209133 | E44: =SUMPRODUCT(ABS(E3:E42-$C$3:$C$42)) -> 0.1533414746 | F44: =SUMPRODUCT(ABS(F3:F42-$C$3:$C$42)) -> 0.1350534965
